Cogmind - Beta 12 @@@ ROGUE MODE // 2023.11.26 @ 20:39:56 Player: Mozco Result: Destroyed by S-27 Virus with Autogun Performance ------------- Evolutions (3) 1500 Regions Visited (6) 1200 Robots Destroyed (55) 275 Value Destroyed (1820) 1820 Prototype IDs (7) 140 Alien Tech Used (0) 0 Bonus (407) 407 TOTAL SCORE: 5342 Bonus ------- Follower Combat Kills 107 Aligned with FarCom 300 Cogmind --------- Core Integrity 0/700 Matter 300/300 Energy 100/100 System Corruption 24% Temperature Cool (9) Movement Core (350) Ox6 Location -7/Factory Parts ------- > --- POWER (1) -------- (None) > --- PROPULSION (2) --- (None) > --- UTILITY (8) ------ Large Storage Unit > --- WEAPON (2) ------- (None) > --- INVENTORY (15) --- Light Nuclear Core Army-in-a-Box (27/30) Improved EM Pulse Cannon Gauss Rifle Heavy Mace Heavy Mace Spear Peak State ------------ > --- POWER ------------ (None) > --- PROPULSION ------- Advanced Treads Medium Treads > --- UTILITY ---------- Advanced Heat Sink Large Storage Unit Army-in-a-Box > --- WEAPON ----------- Spear Spear > --- INVENTORY -------- Carbon-fiber Leg Carbon-fiber Leg Improved EM Pulse Cannon Particle Cannon Particle Cannon Particle Cannon Spear [Rating: 77] Favorites ----------- Power Ion Engine Engine Ion Engine Power Core Light Nuclear Core Propulsion Improved Treads Treads Improved Treads Leg Carbon-fiber Leg Wheel Wheel Utility Large Storage Unit Device Force Booster Storage Large Storage Unit Processor Visual Processing Unit Protection Light Armor Plating Weapon Heavy Hammer Energy Gun Medium Laser Energy Cannon Particle Cannon Ballistic Gun Assault Rifle Launcher Rocket Launcher Impact Weapon Heavy Hammer Piercing Weapon Spear Build | -11 -10 -10 -10 -9 -8 -7 ------- Run | Jun Mat Min Exi Min Mat Fac Slots Evolved 6 | . . . . . 4 2 Power . | . . . . . . . Propulsion . | . . . . . . . Utility 6 | . . . . . 4 2 Weapon . | . . . . . . . Parts Attached 65 | 7 12 . 1 3 16 26 Power 7 | 1 2 . . . 1 3 Engine 4 | 1 1 . . . 1 1 Core 3 | . 1 . . . . 2 Reactor . | . . . . . . . Propulsion 21 | 2 4 . . . 4 11 Treads 11 | . 4 . . . 4 3 Leg 6 | . . . . . . 6 Wheel 4 | 2 . . . . . 2 Hover . | . . . . . . . Flight . | . . . . . . . Utility 18 | 2 2 . 1 1 4 8 Device 12 | 1 1 . 1 . 2 7 Storage 3 | 1 1 . . . 1 . Processor 2 | . . . . 1 . 1 Hackware . | . . . . . . . Protection 1 | . . . . . 1 . Artifact . | . . . . . . . Weapon 19 | 2 4 . . 2 7 4 Energy Gun 1 | 1 . . . . . . Energy Cannon 5 | . 2 . . . 3 . Ballistic Gun 1 | 1 . . . . . . Ballistic Cannon . | . . . . . . . Launcher 4 | . . . . 1 2 1 Special Weapon . | . . . . . . . Impact Weapon 4 | . 2 . . 1 . 1 Slashing Weapon . | . . . . . . . Piercing Weapon 4 | . . . . . 2 2 Special Melee Weapon . | . . . . . . . Unidentified Prototypes 2 | . . . 1 . 1 . Parts Lost 29 | . 2 . . . 7 20 Power 5 | . 1 . . . 2 2 Propulsion 9 | . . . . . 3 6 Utility 10 | . 1 . . . 2 7 Weapon 5 | . . . . . . 5 Highest Loss Streak 14 | . 1 . . . 5 14 To Critical Strikes . | . . . . . . . Average Slot Usage (%) 82 | . 90 100 91 96 57 67 Engine 7 | . 7 14 14 14 7 . Core 1 | . 1 . . . . 2 Treads 19 | . 21 28 28 28 15 8 Leg 1 | . . . . . . 4 Wheel 1 | . 6 . . . . . Device 12 | . 10 14 5 . 5 27 Storage 11 | . 14 14 14 14 8 7 Processor 2 | . . . . 11 . . Energy Cannon 1 | . 4 . . . 9 . Impact Weapon 15 | . 20 28 28 25 5 . Piercing Weapon 4 | . . . . . 2 14 Naked Turns . | . . . . . . . Heaviest Build 105 | 15 33 32 32 32 37 105 Greatest Support 50 | 20 46 46 46 46 46 50 Greatest Overweight (x) 7 | . 3 . . . 1 7 Average Overweight (x) . | . . . . . . . Largest Inventory Capacity 15 | 8 15 15 15 15 15 15 Average Capacity 14 | 7 14 15 15 15 14 15 Most Carried 15 | 6 15 14 15 15 15 15 Average Carried 13 | 4 13 14 14 15 14 13 Final Capacity 15 | 8 15 15 15 15 15 15 Final Carried 15 | 6 14 14 15 15 14 12 Class Distribution -------------------- 86% | Mutant 7% | Scavenger-Mutant 4% | Skirmisher Dominant Class ---------------- Mutant | -10/Materials Mutant | -10/Mines Mutant | -10/Exiles Mutant | -9/Mines Mutant | -8/Materials Mutant | -7/Factory Resources | -11 -10 -10 -10 -9 -8 -7 ----------- Run | Jun Mat Min Exi Min Mat Fac Matter Collected 827 | 282 110 . . 69 158 208 Remotely . | . . . . . . . Salvage Created 2010 | 111 659 . . 225 337 678 Parts 88 | 8 23 . . 8 14 35 Haulers Intercepted 3 | . 2 . . . . 1 Recyclers Shooed 1 | 1 . . . . . . Parts Field Recycled . | . . . . . . . Retrieved Matter . | . . . . . . . Parts Self-Destructed . | . . . . . . . Prevented . | . . . . . . . Kills | -11 -10 -10 -10 -9 -8 -7 ------- Run | Jun Mat Min Exi Min Mat Fac Combat Hostiles Destroyed 36 | . 10 . . 5 9 12 Melee 19 | . 5 . . 1 2 11 Guns 1 | . 1 . . . . . Cannons 3 | . 2 . . . 1 . AOE 7 | . . . . 3 4 . Classes Destroyed 13 | 2 6 . . 1 2 2 Worker 5 | . 3 . . 1 . 1 Builder 3 | . 1 . . 2 . . Tunneler 4 | 2 1 . . 1 . . Hauler 3 | . 2 . . . . 1 Recycler 2 | 1 . . . . 1 . Operator 1 | . 1 . . . . . Watcher 1 | . 1 . . . . . Swarmer 3 | . . . . . 3 . Grunt 24 | . 10 . . 4 3 7 Brawler 2 | . . . . 1 . 1 Sentry 4 | . . . . . 3 1 Hunter 1 | . . . . . . 1 Programmer 2 | . . . . . . 2 Best Kill Streak 6 | 3 4 . . 3 6 4 Combat Bots Only 6 | . 3 . . 3 6 4 Max Kills in Single Turn 4 | 1 2 . . 3 4 1 Gunslinging . | . . . . . . . Exploded 4 | . . . . 3 4 . Melee 2 | . 2 . . 1 1 1 Uniques/NPCs Destroyed . | . . . . . . . Combat | -11 -10 -10 -10 -9 -8 -7 -------- Run | Jun Mat Min Exi Min Mat Fac Damage Taken 4750 | . 652 . 315 46 1111 2626 Core 1147 | . 80 . 101 22 231 713 Absorbed by Shields . | . . . . . . . Core Remaining (%) 58 | 100 . . . 18 58 . Volleys Fired 35 | 4 16 . . 1 13 1 Largest 2 | 2 2 . . 1 2 1 Hottest 136 | 70 136 . . 33 136 33 Shots Fired 63 | 8 32 . . 1 21 1 Gun 18 | 8 10 . . . . . Cannon 40 | . 22 . . . 18 . Launcher 5 | . . . . 1 3 1 Special . | . . . . . . . Kinetic 9 | 4 5 . . . . . Thermal 49 | 4 27 . . . 18 . Explosive 5 | . . . . 1 3 1 Electromagnetic . | . . . . . . . Robot Hit Streak 14 | 6 6 . . . 14 . Robot Miss Streak 3 | . 3 . . . 2 1 Penetration Max . | . . . . . . . Secondary Targets . | . . . . . . . Shots Hit Robots 141 | 6 41 . . 10 33 51 Core Hits 49 | 4 12 . . 4 10 19 Critical Kills 2 | . 2 . . . . . Critical Parts Destroyed 12 | . 6 . . 3 1 2 Critical Strikes 21 | . 9 . . 3 3 6 Burn 1 | . 1 . . . . . Smash 14 | . 8 . . 3 1 2 Impale 6 | . . . . . 2 4 Melee Attacks 140 | . 37 . . 11 23 69 Impact 68 | . 37 . . 11 9 11 Slashing . | . . . . . . . Piercing 72 | . . . . . 14 58 Sneak Attacks 18 | . 8 . . 5 1 4 Combat Hostiles 1 | . . . . 1 . . Follow-up Attacks 14 | . 3 . . 2 4 5 Damage Inflicted 5478 | 74 1481 . . 888 1347 1688 Guns 154 | 74 80 . . . . . Cannons 639 | . 284 . . . 355 . Explosions 715 | . . . . 284 431 . Melee 3960 | . 1117 . . 594 561 1688 Ramming 10 | . . . . 10 . . Kinetic 55 | 25 30 . . . . . Thermal 1158 | 49 334 . . 264 511 . Explosive 295 | . . . . 20 275 . Electromagnetic . | . . . . . . . Impact 2174 | . 1117 . . 594 226 237 Slashing . | . . . . . . . Piercing 1786 | . . . . . 335 1451 Highest Corruption 24 | . . . . . . 24 Average Corruption 3 | . . . . . . 3 Corruption Purged . | . . . . . . . Corruption Blocked . | . . . . . . . Effects 16 | . . . . . . 16 Message Errors 6 | . . . . . . 6 Matter Fused 2 | . . . . . . 2 Heat Flow Errors 3 | . . . . . . 3 Energy Discharges 2 | . . . . . . 2 Parts Rejected 1 | . . . . . . 1 Data Loss (minor) 2 | . . . . . . 2 Overload Shots . | . . . . . . . Overflow Damage 1276 | . 610 . . 436 114 116 Projectiles 31 | . 1 . . 30 . . Explosions 104 | . . . . 53 30 21 Melee 1141 | . 609 . . 353 84 95 Knockbacks 9 | . 6 . . 3 . . Impact 8 | . 6 . . 2 . . Kinetic . | . . . . . . . Secondary 1 | . . . . 1 . . Self-Inflicted Damage 140 | . . . . . 107 33 Shots 3 | . . . . . 2 1 Rammed 1 | . . . . 1 . . Targets Rammed 1 | . . . . 1 . . Kicked . | . . . . . . . Crushed . | . . . . . . . Highest Temperature 373 | 36 373 . . . 245 210 Average Temperature 122 | 19 152 . . . 111 77 Received Heat Transfer 1819 | . 372 . 12 24 459 952 Effects 2 | . 1 . . . 1 . Energy Bleed 1 | . . . . . 1 . Short Circuit 1 | . 1 . . . . . Siege Activations . | . . . . . . . Robots Corrupted . | . . . . . . . Combat Hostiles . | . . . . . . . Parts Fried 20 | . 12 . . 7 1 . Impact Corruptions 40 | . 20 . . 14 2 4 Robots Melted 1 | . . . . . 1 . Combat Hostiles 1 | . . . . . 1 . Parts Melted 5 | . 3 . . . 2 . Heat Transferred 1967 | 148 740 . . 350 729 . Parts Sabotaged . | . . . . . . . Parts Stolen . | . . . . . . . Parts Stripped . | . . . . . . . Power Chain Reactions . | . . . . . . . Missiles Intercepted . | . . . . . . . Alert | -11 -10 -10 -10 -9 -8 -7 ------- Run | Jun Mat Min Exi Min Mat Fac Peak Influence 446 | 15 292 55 . 189 292 446 Initial 132 | . 9 55 . . 58 132 Average 132 | 2 172 55 . 59 158 172 Maximum Alert Level 2 | . 1 . . . 1 2 Low Security (%) 73 | 100 63 100 . 100 74 55 Level 1 25 | . 36 . . . 25 43 Level 2 . | . . . . . . 1 Level 3 . | . . . . . . . Level 4 . | . . . . . . . Level 5 . | . . . . . . . High Security . | . . . . . . . Max Security . | . . . . . . . Squads Dispatched 9 | . 2 . . . 2 5 Investigation 2 | . 1 . . . . 1 Extermination 3 | . . . . . . 3 Reinforcement 2 | . 1 . . . . 1 Assault 1 | . . . . . 1 . Garrison 1 | . . . . . 1 . Intercept . | . . . . . . . Searches Triggered . | . . . . . . . Construction Impeded 1 | . . . . . . 1 Haulers Reinforced . | . . . . . . . Active Scanning Responses . | . . . . . . . Cargo Convoy Interrupts . | . . . . . . . Stealth | -11 -10 -10 -10 -9 -8 -7 --------- Run | Jun Mat Min Exi Min Mat Fac Distress Signals 1 | . 1 . . . . . Communications Jammed . | . . . . . . . Distress Signals . | . . . . . . . Times Spotted 67 | . 20 . 2 6 18 21 Peak Tracking Total 6 | . 4 . 2 1 6 4 Tactical Retreats 5 | . 1 . . 4 . . Traps | -11 -10 -10 -10 -9 -8 -7 ------- Run | Jun Mat Min Exi Min Mat Fac Traps Triggered 2 | . . . . . . 2 Indirectly . | . . . . . . . Trap Hack Attempts . | . . . . . . . Triggered . | . . . . . . . Disarmed . | . . . . . . . Reprogrammed . | . . . . . . . Reused 2 | . . . . 2 . . Traps Extracted . | . . . . . . . Installed 3 | . . . . 3 . . Triggered 2 | . . . . 2 . . Machines | -11 -10 -10 -10 -9 -8 -7 ---------- Run | Jun Mat Min Exi Min Mat Fac Machines Disabled 15 | . 2 . . 6 2 5 Max in Single Turn 6 | . 1 . . 6 2 . Garrison Access 1 | . . . . . 1 . Machines Repaired . | . . . . . . . Machines Sabotaged . | . . . . . . . Overloaded Fab Kills . | . . . . . . . Hacking | -11 -10 -10 -10 -9 -8 -7 --------- Run | Jun Mat Min Exi Min Mat Fac Machines Accessed 16 | . 9 . 1 . 2 4 Terminals 13 | . 8 . . . 2 3 Fabricators . | . . . . . . . Repair Stations . | . . . . . . . Recycling Units 1 | . 1 . . . . . Scanalyzers 1 | . . . . . . 1 Garrison Access . | . . . . . . . Total Hacks 52 | . 32 . 4 . 7 9 Successful 28 | . 17 . 4 . 4 3 Failed 23 | . 14 . . . 3 6 Catastrophic 5 | . 1 . . . 1 3 Database Lockouts 1 | . 1 . . . . . Manual 21 | . 13 . 1 . 4 3 Terminals 44 | . 29 . . . 7 8 Fabricators . | . . . . . . . Repair Stations . | . . . . . . . Recycling Units 3 | . 3 . . . . . Scanalyzers 1 | . . . . . . 1 Garrison Access . | . . . . . . . Terminal Hacks 19 | . 11 . 4 . 1 3 Record 4 | . . . 4 . . . Robot Analysis 1 | . 1 . . . . . Prototype ID Bank 4 | . 4 . . . . . Emergency Access Points 1 | . 1 . . . . . Unreport Threat 1 | . . . . . . 1 Locate Traps 2 | . 2 . . . . . Zone Layout 6 | . 3 . . . 1 2 Fabricator Hacks . | . . . . . . . Repair Station Hacks . | . . . . . . . Recycling Unit Hacks 1 | . 1 . . . . . Retrieve Matter 1 | . 1 . . . . . Scanalyzer . | . . . . . . . Garrison Access Hacks . | . . . . . . . Unauthorized Hacks 8 | . 5 . . . 3 . Terminals 7 | . 4 . . . 3 . Track 2 | . 1 . . . 1 . Botnet 3 | . 2 . . . 1 . Operators 2 | . 1 . . . 1 . Fabricators . | . . . . . . . Repair Stations . | . . . . . . . Recycling Units 1 | . 1 . . . . . Tunnel 1 | . 1 . . . . . Scanalyzers . | . . . . . . . Garrison Access . | . . . . . . . Data Cores Recovered . | . . . . . . . Used . | . . . . . . . Hacking Detections 15 | . 9 . . . 2 4 Full Trace Events 1 | . . . . . . 1 Feedback Events . | . . . . . . . Feedback Blocked . | . . . . . . . Robot Schematics Acquired . | . . . . . . . Robots Built . | . . . . . . . Authchips . | . . . . . . . Time . | . . . . . . . Total Robot Build Rating . | . . . . . . . Part Schematics Acquired . | . . . . . . . Parts Built . | . . . . . . . Authchips . | . . . . . . . Time . | . . . . . . . Total Part Build Rating . | . . . . . . . Parts Repaired . | . . . . . . . Time . | . . . . . . . Parts Recycled . | . . . . . . . Recycled Matter . | . . . . . . . Retrieved Matter . | . . . . . . . Retrieved Components . | . . . . . . . Parts Scanalyzed . | . . . . . . . Part Schematics Acquired . | . . . . . . . Parts Damaged . | . . . . . . . Bothacking | -11 -10 -10 -10 -9 -8 -7 ------------ Run | Jun Mat Min Exi Min Mat Fac Used RIF Installer . | . . . . . . . Robots Hacked . | . . . . . . . Non-combat . | . . . . . . . Combat . | . . . . . . . Robot Hacks Applied . | . . . . . . . Relay Couplers Released 1 | . . . . . 1 . Machine Destruction 1 | . . . . . 1 . Fabnet Peak Effective % . | . . . . . . . Robots Rewired . | . . . . . . . Allies Hacked . | . . . . . . . Hacks Repelled . | . . . . . . . Allies | -11 -10 -10 -10 -9 -8 -7 -------- Run | Jun Mat Min Exi Min Mat Fac Total Allies 2 | . . 2 . . . . Largest Group 2 | . . 2 2 . . . Highest-Rated Group 39 | . . 39 39 . . . Highest-Rated Ally 31 | . . 31 31 . . . Total Orders 4 | . . . . . . 4 EXPLORE 2 | . . . . . . 2 RETURN 2 | . . . . . . 2 Ally Attacks 39 | . . . . . . 39 Total Damage 615 | . . . . . . 615 Kills 6 | . . . . . . 6 Allies Corrupted 1 | . . . . . . 1 Allies Melted . | . . . . . . . Intel | -11 -10 -10 -10 -9 -8 -7 ------- Run | Jun Mat Min Exi Min Mat Fac Robot Analysis Total 1 | . 1 . . . . . Derelict Logs Recovered 4 | . . 1 . 3 . . Drone Launches 42 | . . . . . . 42 Drone Recoveries 39 | . . . . . . 39 Exploration | -11 -10 -10 -10 -9 -8 -7 ------------- Run | Jun Mat Min Exi Min Mat Fac Turns Passed 4345 | 77 915 377 438 793 481 1264 Spaces Moved 2176 | 62 506 233 270 436 206 463 Core 7 | 3 . . . . . 4 Treads 1738 | . 357 233 270 436 206 236 Legs 183 | . . . . . . 183 Wheels 248 | 59 149 . . . . 40 Hover . | . . . . . . . Flight . | . . . . . . . Fastest Speed 50 | 50 80 160 160 160 160 95 Average Speed 156 | 78 140 160 160 160 170 172 Slowest Speed 400 | 80 160 160 160 160 240 400 Overloaded Moves . | . . . . . . . Propulsion Burnouts . | . . . . . . . Robots Hopped . | . . . . . . . Cave-ins Triggered . | . . . . . . . Exploration Rate (%) 46 | 4 77 66 61 76 20 19 Regions Visited 6 Branch Regions 3 Pre-discovered Areas 3 | . 1 . . 2 . . Known Exits Taken . | . . . . . . . Unknown Exits Taken 6 | 1 1 1 1 1 1 . Scrap Searched 2 | . . . . 2 . . Spaces Dug 26 | . 1 . . . 25 . Terrain Destroyed 77 | . 1 . . 30 41 5 Melee 1 | . 1 . . . . . Projectile . | . . . . . . . AOE 76 | . . . . 30 41 5 Terrain Rammed . | . . . . . . . Walls Destroyed . | . . . . . . . Machines Disabled . | . . . . . . . Actions | -11 -10 -10 -10 -9 -8 -7 --------- Run | Jun Mat Min Exi Min Mat Fac Total 2836 | 78 626 237 279 513 278 825 Wait 356 | . 32 5 . 62 6 251 Move 2170 | 61 505 232 269 435 205 463 Hop . | . . . . . . . Pick Up 44 | 6 16 . 2 . 10 10 Fast Attach 33 | 7 4 . . 1 6 15 Attach 11 | . . . . . 2 9 Detach 1 | . . . . . . 1 Swap 21 | . 8 . 1 2 8 2 Drop 41 | . 14 . 7 . 9 11 Fire 35 | 4 16 . . 1 13 1 Melee 120 | . 31 . . 8 19 62 Ram . | . . . . . . . Kick . | . . . . . . . Crush 1 | . . . . 1 . . Escape Stasis . | . . . . . . . Rewire . | . . . . . . . Trap 3 | . . . . 3 . . Miscellaneous . | . . . . . . . Route ------- -11/Junkyard -10/Materials (discovered 3 exits: [*Mat x2] / [*Min]) -10/Mines (discovered 3 exits: [*Mat x2] / *Exi) -10/Exiles -9/Mines -8/Materials -7/Factory History --------- Turn | Location | Event 3 | -11/Junkyard | Discovered new exit (range 16) 78 | -11/Junkyard | Entered Materials 302 | -10/Materials | Build established: Mutant 583 | -10/Materials | Discovered new exit (range 6) 707 | -10/Materials | Discovered new exit (range 16) 805 | -10/Materials | Discovered new exit (range 16) 926 | -10/Materials | Central database locked down 993 | -10/Materials | Entered Mines 1001 | -10/Mines | Discovered new exit (range 15) 1313 | -10/Mines | Learned Materials emergency access door positions 1342 | -10/Mines | Discovered new exit (range 10) 1357 | -10/Mines | Deemed a non-threat by the Exiles lab entrance 1357 | -10/Mines | Discovered new exit (range 5) 1370 | -10/Mines | Entered Exiles 1370 | -10/Exiles | Accompanied by 2 allies 1400 | -10/Exiles | Led the pair of lost Derelicts to a safe place 1407 | -10/Exiles | Met 8R-AWN 1434 | -10/Exiles | Met EX-HEX 1481 | -10/Exiles | Met EX-BIN 1500 | -10/Exiles | Aligned with FarCom system 1502 | -10/Exiles | Given EX-Vault access code 1540 | -10/Exiles | Opened EX-Vault 1548 | -10/Exiles | Found Prototype Device 1549 | -10/Exiles | Identified Skeleton Box 1608 | -10/Exiles | Exiles lab attacked by MAIN.C 1642 | -10/Exiles | Found Prototype Device 1701 | -10/Exiles | Core integrity fell below 50% 1793 | -10/Exiles | Discovered new exit (range 10) 1808 | -10/Exiles | Left Exiles lab with Army-in-a-Box 1808 | -10/Exiles | Entered Mines 2008 | -9/Mines | Learned location of Storage (-7) 2048 | -9/Mines | Found a hidden stash of uninstalled traps 2125 | -9/Mines | Learned Materials stockpile data 2333 | -9/Mines | Core integrity fell below 20% 2494 | -9/Mines | Assembled infested the area 2574 | -9/Mines | Discovered new exit (range 10) 2601 | -9/Mines | Entered Materials 2601 | -8/Materials | Evolved 4 slots: Utility x4 2603 | -8/Materials | Identified Army-in-a-Box 2971 | -8/Materials | Discovered new exit (range 5) 3003 | -8/Materials | Garrison activated, responded to threat 3069 | -8/Materials | Lost 5 parts (1p2n2u) 3082 | -8/Materials | Entered Factory 3082 | -7/Factory | Evolved 2 slots: Utility x2 3921 | -7/Factory | Core integrity fell below 50% 3948 | -7/Factory | Lost 3 parts (1p2n) 4256 | -7/Factory | Build established: Scavenger-Mutant 4303 | -7/Factory | System corruption reached 10% 4325 | -7/Factory | Core integrity fell below 20% 4346 | -7/Factory | Destroyed by S-27 Virus with Autogun Last Messages --------------- 04325_ K-01 Serf collects debris. 04326_ B-48 Gladiator suffers critical hit (Smash). 04326_ Destroyed Lgt. Treads. 04326_ Destroyed Imp. Light Armor Plating. 04326_ B-48 Gladiator system corrupted by crushing effect. 04327_ B-48 Gladiator system terminally corrupted. 04328_ K-01 Serf collects debris. 04330_ H8CM W1B72HWVO2CD2>LR3Z2Y% 04331_ K-01 Serf collects debris. 04332_ ALERT: Rogue bot located, Programmers report to Factory Zone 1V. 04333_ Destroyed VTOL Module. 04333_ S-27 Virus system corrupted by crushing effect. 04334_ K-01 Serf collects debris. 04336_ S-27 Virus misfires. 04337_ R-06 Scavenger collects Structural Scanner. 04339_ R-06 Scavenger collects Welding Torch. 04339_ K-01 Serf collects debris. 04343_ Hvy. Mace destroyed. 04343_ K-01 Serf collects debris. 04344_ R-06 Scavenger collects Wheel. Map ----- +----------------------------------------------------+ | ?????????????????????????????????????????????????? | | ???????????????????????????? ????????????????? | | ???????????????????????????# +???????????????? | | ???????????????????????????# #???????????????? | | ???????????????????????????# #???????????????? | | ???????????????????????????# #???????????????? | | ???????????????????????????# #???????????????? | | ???????????????????????????# #???????????????? | | ???????????????????????????# #???????????????? | | ???????????????????????????# #???????????????? | | ???????????????????????????# ##??????????????? | | ???????????????????????????# T#??????????????? | | ???????????????????????????# g #??????????????? | | ???????????????????????????# #???????????#???? | | ???????????????????????###?# ########### ###?? | | ???????????????######### ### lg #?? | | ??????????????# % + #?? | | ??????????????# """" """" # #?? | | ????????????????"""" """" # #?? | | ??????????????# """" """" # #?? | | ??????????????# """" """" !#########+##### #?? | | ??????????????# u srr ## #? #?? | | ??????????????# """" ![ ## """"""" #?? #?? | | ??????????????? """" [k% ## """Y""" #??? #?? | | ??????????????? """" ## #??? +?? | | ????????????????"""" @ ## = % #??? #?? | | ??????????????# g## """" """" #??? #?? | | ??????????????# ## """" """" #???# #?? | | ??????????????############### """" """" #???# #?? | | ????????????????????????????# """" """" #???# #?? | | ????????????????????????????# """" """" #???# #?? | | ????????????????????????????# """" """" ##### ### | | ????????????????????????????# + | | ????????????????????????????##?########### | | ?????????????????????????????????????????# | | ??????????????????????????????????? w w | | ??????????????????????????????????? ############## | | ????????????????????????????????????????????????? | | ???????????????????????????????????????????????? | | ?????????????????????????????????????????????? | | ????????????????????????????????????????????# ] | | ????????????????????????????????????????????# | | ????????????????????????????????????????????# | | ????????????????????????????????????????????# = | | ????????????????????????????????????????????# | | ????????????????????????????????????????????###### | | ????????????????????????????????????????????????? | | ?????????????????????????????????????????????????" | | ????????????????????????????????????????????????? | | ?????????????????????????????????????????????????" | +----------------------------------------------------+ Best States ------------- Heat Dissipation 53 Energy Generation 16 Energy Capacity 290 Matter Stores 300 Matter Capacity 300 Sight Range 18 Terrain Scan Range 16 Terrain Scan Density 10 Jamming Range 12 Armor Coverage 150 Evasion (%) 50 Melee Accuracy 6 Recoil Reduction 2 Force Boost 20 Item Schematics ----------------- None Robot Schematics ------------------ None Fabricated ------------ Nothing Alien Tech Used ----------------- None Achievements -------------- Ambidextrous Challenges ------------ None Game ------ Seed SniperCoolingFirepult Manual? 0 Play Time 00:43:22 Cumulative 79.1 hours Start 2023.11.26 @ 19:48:59 End 2023.11.26 @ 20:39:56 Sessions 1 Manual Loads 0 Difficulty Rogue Special Mode None Game No. 70 Rogue 67 Adventurer 3 Explorer 0 Win Type - Total 0 Types 0/0/0/0/0/0/0/0/0 Lore% 56 Gallery% 59 Achievement% 48 Wizard Run 0 Options --------- ASCII 0 Keyboard 0 Movement Mouse Keybinds 0 Fullscreen 2 Font 18/SmallcapsGlow Map View 76x50 Tactical HUD 1 Map Filters NONE Filters NONE Steam 1 RUN: f5616d81-8242-40a1-84c2-a10aa91a920e